[Event "Live Chess"]
[Site "Chess.com"]
[Date "2023.05.20"]
[Round "-"]
[White "LanceMaster23"]
[Black "CheckThis4"]
[Result "1/2-1/2"]
[WhiteElo "1873"]
[BlackElo "2550"]
[TimeControl "300"]
[EndTime "12:49:01 PDT"]
[Termination "Game drawn - timeout vs insufficient material"]

1. Nf3 {[%clk 0:04:58.9]} 1... c5 {[%clk 0:04:56.4]} 2. c3 {[%clk 0:04:57.6]}
2... g6 {[%clk 0:04:51.4]} 3. d4 {[%clk 0:04:57.1]} 3... Bg7 {[%clk 0:04:51]} 4.
Bf4 {[%clk 0:04:56]} 4... b6 {[%clk 0:04:41.1]} 5. e3 {[%clk 0:04:54.4]} 5...
Bb7 {[%clk 0:04:38.8]} 6. Nbd2 {[%clk 0:04:53.2]} 6... Nf6 {[%clk 0:04:37.5]} 7.
h3 {[%clk 0:04:51.4]} 7... d6 {[%clk 0:04:36.9]} 8. Be2 {[%clk 0:04:50.1]} 8...
Nbd7 {[%clk 0:04:36.5]} 9. O-O {[%clk 0:04:48.9]} 9... O-O {[%clk 0:04:36.1]}
10. Re1 {[%clk 0:04:48]} 10... a6 {[%clk 0:04:35.1]} 11. Qb3 {[%clk 0:04:47.1]}
11... Rc8 {[%clk 0:04:31.2]} 12. a4 {[%clk 0:04:45.8]} 12... Bc6 {[%clk
0:04:22.7]} 13. Bxa6 {[%clk 0:04:28.6]} 13... Ra8 {[%clk 0:04:20.5]} 14. Bb5
{[%clk 0:04:23.5]} 14... Qc8 {[%clk 0:04:19.7]} 15. e4 {[%clk 0:03:50.8]} 15...
Nh5 {[%clk 0:04:08.2]} 16. Bh2 {[%clk 0:03:48.5]} 16... e5 {[%clk 0:03:51.9]}
17. dxe5 {[%clk 0:03:39.1]} 17... dxe5 {[%clk 0:03:46.7]} 18. Nc4 {[%clk
0:03:38]} 18... Qc7 {[%clk 0:03:43.6]} 19. Ncxe5 {[%clk 0:02:49.2]} 19... Nxe5
{[%clk 0:03:19.3]} 20. Nxe5 {[%clk 0:02:48.1]} 20... Bxb5 {[%clk 0:02:55.7]} 21.
Nxg6 {[%clk 0:02:46.3]} 21... Qb7 {[%clk 0:02:48.4]} 22. Nxf8 {[%clk 0:02:20.9]}
22... Bc6 {[%clk 0:02:46]} 23. Ne6 {[%clk 0:01:34.1]} 23... fxe6 {[%clk
0:02:39.9]} 24. Qxe6+ {[%clk 0:01:32.2]} 24... Kh8 {[%clk 0:02:38.9]} 25. Be5
{[%clk 0:01:23.9]} 25... Re8 {[%clk 0:02:36.5]} 26. Bxg7+ {[%clk 0:01:20.8]}
26... Nxg7 {[%clk 0:02:36.4]} 27. Qg4 {[%clk 0:01:15.5]} 27... Qe7 {[%clk
0:02:30]} 28. a5 {[%clk 0:01:09.3]} 28... bxa5 {[%clk 0:02:26.3]} 29. Rxa5
{[%clk 0:01:08.6]} 29... Ne6 {[%clk 0:02:25.8]} 30. Qf5 {[%clk 0:00:53.1]} 30...
Qg7 {[%clk 0:02:09.1]} 31. f3 {[%clk 0:00:45.8]} 31... Bd7 {[%clk 0:02:04.6]}
32. Qg4 {[%clk 0:00:35.2]} 32... Qf6 {[%clk 0:01:54.5]} 33. Rd1 {[%clk
0:00:34.3]} 33... Rg8 {[%clk 0:01:52.7]} 34. Rxd7 {[%clk 0:00:23.8]} 34... Rxg4
{[%clk 0:01:49.8]} 35. hxg4 {[%clk 0:00:23.7]} 35... Nf8 {[%clk 0:01:43.2]} 36.
Ra8 {[%clk 0:00:21.4]} 36... Qf4 {[%clk 0:01:33.6]} 37. Rdd8 {[%clk 0:00:18.1]}
37... Qc1+ {[%clk 0:01:32.6]} 38. Kh2 {[%clk 0:00:17.4]} 38... Qf4+ {[%clk
0:01:30]} 39. Kg1 {[%clk 0:00:16.8]} 39... Qc1+ {[%clk 0:01:24.9]} 40. Kh2
{[%clk 0:00:16.4]} 40... Kg7 {[%clk 0:01:20.4]} 41. Rxf8 {[%clk 0:00:14.9]}
41... Qh6+ {[%clk 0:01:19.5]} 42. Kg3 {[%clk 0:00:13.8]} 42... Qd6+ {[%clk
0:01:18.5]} 43. Rf4 {[%clk 0:00:12.9]} 43... c4 {[%clk 0:01:17]} 44. Rf8 {[%clk
0:00:12.7]} 44... h6 {[%clk 0:01:14]} 45. Rf7+ {[%clk 0:00:12.3]} 45... Kg8
{[%clk 0:01:12.2]} 46. Rf8+ {[%clk 0:00:12]} 46... Kg7 {[%clk 0:01:10.8]} 47.
Kh3 {[%clk 0:00:08.2]} 47... Qe7 {[%clk 0:01:00.4]} 48. R4f7+ {[%clk 0:00:07.5]}
48... Qxf7 {[%clk 0:00:59.4]} 49. Rxf7+ {[%clk 0:00:07.4]} 49... Kxf7 {[%clk
0:00:59.2]} 50. f4 {[%clk 0:00:07.3]} 50... Kg6 {[%clk 0:00:58.9]} 51. Kg3
{[%clk 0:00:07.2]} 51... Kf6 {[%clk 0:00:58.4]} 52. g5+ {[%clk 0:00:06.8]} 52...
Kg6 {[%clk 0:00:56.4]} 53. gxh6 {[%clk 0:00:05.7]} 53... Kxh6 {[%clk 0:00:56.3]}
54. Kg4 {[%clk 0:00:05.4]} 54... Kg7 {[%clk 0:00:55.6]} 55. f5 {[%clk
0:00:05.3]} 55... Kf6 {[%clk 0:00:55.3]} 56. Kf4 {[%clk 0:00:05.2]} 56... Ke7
{[%clk 0:00:54.5]} 57. e5 {[%clk 0:00:05.1]} 57... Kd7 {[%clk 0:00:53.5]} 58. g4
{[%clk 0:00:05]} 58... Kc6 {[%clk 0:00:53.3]} 59. g5 {[%clk 0:00:04.9]} 59...
Kc5 {[%clk 0:00:53.1]} 60. g6 {[%clk 0:00:04.8]} 60... Kb5 {[%clk 0:00:52.9]}
61. Ke4 {[%clk 0:00:03.9]} 61... Ka4 {[%clk 0:00:52.8]} 62. Kd4 {[%clk
0:00:03.8]} 62... Kb3 {[%clk 0:00:52.4]} 63. e6 {[%clk 0:00:03.4]} 63... Kxb2
{[%clk 0:00:51.7]} 64. Kxc4 {[%clk 0:00:03.3]} 64... Kc2 {[%clk 0:00:51]} 65. e7
{[%clk 0:00:03.2]} 65... Kd2 {[%clk 0:00:50.8]} 66. e8=Q {[%clk 0:00:03.1]}
66... Kc1 {[%clk 0:00:50.6]} 67. Qe3+ {[%clk 0:00:02.4]} 67... Kb2 {[%clk
0:00:50.5]} 68. Qd2+ {[%clk 0:00:01.8]} 68... Kb1 {[%clk 0:00:49.9]} 1/2-1/2

[Event "Live Chess"]
[Site "Chess.com"]
[Date "2023.05.20"]
[Round "-"]
[White "yarek"]
[Black "MarkLim1"]
[Result "1-0"]
[WhiteElo "1894"]
[BlackElo "1663"]
[TimeControl "300"]
[EndTime "12:49:05 PDT"]
[Termination "yarek won by resignation"]

1. e4 {[%clk 0:04:56.3]} 1... e6 {[%clk 0:04:59.1]} 2. d4 {[%clk 0:04:53.8]}
2... d5 {[%clk 0:04:58.5]} 3. exd5 {[%clk 0:04:52.8]} 3... exd5 {[%clk
0:04:57.6]} 4. Bd3 {[%clk 0:04:52.3]} 4... Nc6 {[%clk 0:04:56.7]} 5. c3 {[%clk
0:04:49.3]} 5... Bd6 {[%clk 0:04:55.7]} 6. Nf3 {[%clk 0:04:44.2]} 6... Nge7
{[%clk 0:04:54.2]} 7. Bg5 {[%clk 0:04:40.5]} 7... f6 {[%clk 0:04:52.8]} 8. Bh4
{[%clk 0:04:36.2]} 8... Bg4 {[%clk 0:04:50.8]} 9. O-O {[%clk 0:04:32.7]} 9...
Qd7 {[%clk 0:04:50]} 10. Nbd2 {[%clk 0:04:28.9]} 10... O-O-O {[%clk 0:04:49]}
11. Qc2 {[%clk 0:04:17.5]} 11... g5 {[%clk 0:04:46.5]} 12. Bg3 {[%clk
0:04:15.3]} 12... h5 {[%clk 0:04:45.5]} 13. Bxd6 {[%clk 0:04:01.7]} 13... Qxd6
{[%clk 0:04:44.5]} 14. b4 {[%clk 0:03:43]} 14... h4 {[%clk 0:04:41.6]} 15. b5
{[%clk 0:03:39.8]} 15... Na5 {[%clk 0:04:40.6]} 16. a4 {[%clk 0:03:20.4]} 16...
Bxf3 {[%clk 0:04:33.1]} 17. Nxf3 {[%clk 0:03:17.9]} 17... g4 {[%clk 0:04:32.2]}
18. Bf5+ {[%clk 0:03:07.9]} 18... Nxf5 {[%clk 0:04:23.6]} 19. Qxf5+ {[%clk
0:03:07.8]} 19... Kb8 {[%clk 0:04:22.8]} 20. Qxg4 {[%clk 0:03:03.6]} 20... Rdg8
{[%clk 0:04:20.9]} 21. Qf5 {[%clk 0:02:57]} 21... h3 {[%clk 0:04:14.7]} 22. g3
{[%clk 0:02:55.1]} 22... Nc4 {[%clk 0:03:58.3]} 23. Rfe1 {[%clk 0:02:51.5]}
23... Re8 {[%clk 0:03:46.1]} 24. Rxe8+ {[%clk 0:02:45.7]} 24... Rxe8 {[%clk
0:03:44.9]} 25. Qxh3 {[%clk 0:02:43.6]} 25... b6 {[%clk 0:03:40.9]} 26. Qh5
{[%clk 0:02:37.5]} 26... Re2 {[%clk 0:03:35]} 27. Ne5 {[%clk 0:02:29.4]} 27...
Rc2 {[%clk 0:03:22.3]} 28. Nc6+ {[%clk 0:02:24.1]} 28... Kb7 {[%clk 0:03:20.3]}
29. Qe8 {[%clk 0:02:20.1]} 1-0

[Event "Live Chess"]
[Site "Chess.com"]
[Date "2023.05.20"]
[Round "-"]
[White "SiDebanks"]
[Black "JackRudd"]
[Result "0-1"]
[WhiteElo "1385"]
[BlackElo "2462"]
[TimeControl "300"]
[EndTime "12:49:09 PDT"]
[Termination "JackRudd won on time"]

1. d4 {[%clk 0:04:58.4]} 1... Nf6 {[%clk 0:04:58.6]} 2. Nc3 {[%clk 0:04:57.9]}
2... d5 {[%clk 0:04:57.2]} 3. Bf4 {[%clk 0:04:57.4]} 3... c6 {[%clk 0:04:55.9]}
4. e3 {[%clk 0:04:56.7]} 4... Bf5 {[%clk 0:04:54.8]} 5. f3 {[%clk 0:04:54.1]}
5... e6 {[%clk 0:04:53.8]} 6. g4 {[%clk 0:04:53.5]} 6... Bg6 {[%clk 0:04:52.8]}
7. h4 {[%clk 0:04:53]} 7... h6 {[%clk 0:04:52.1]} 8. h5 {[%clk 0:04:52.2]} 8...
Bh7 {[%clk 0:04:50.7]} 9. Bd3 {[%clk 0:04:51.6]} 9... Bxd3 {[%clk 0:04:49]} 10.
Qxd3 {[%clk 0:04:51.5]} 10... Qb6 {[%clk 0:04:46.9]} 11. Rb1 {[%clk 0:04:48.8]}
11... Na6 {[%clk 0:04:45.2]} 12. Na4 {[%clk 0:04:37]} 12... Qa5+ {[%clk
0:04:44]} 13. Nc3 {[%clk 0:04:35.1]} 13... Nb4 {[%clk 0:04:37.6]} 14. Qd2 {[%clk
0:04:12]} 14... c5 {[%clk 0:04:34.7]} 15. a3 {[%clk 0:03:56]} 15... Nc6 {[%clk
0:04:30.8]} 16. dxc5 {[%clk 0:03:48.7]} 16... Qxc5 {[%clk 0:04:29.9]} 17. Nge2
{[%clk 0:03:43.2]} 17... b5 {[%clk 0:04:26.1]} 18. Nd4 {[%clk 0:03:34]} 18...
Nxd4 {[%clk 0:04:23.9]} 19. Qxd4 {[%clk 0:03:30.5]} 19... Qxd4 {[%clk
0:04:22.4]} 20. exd4 {[%clk 0:03:29.5]} 20... a6 {[%clk 0:04:20.3]} 21. Kf2
{[%clk 0:03:23.9]} 21... Kd7 {[%clk 0:04:18.7]} 22. Ke3 {[%clk 0:03:22.6]} 22...
Rc8 {[%clk 0:04:16.4]} 23. Rhc1 {[%clk 0:03:19.9]} 23... Be7 {[%clk 0:04:04.8]}
24. Nd1 {[%clk 0:03:16.9]} 24... Rc6 {[%clk 0:04:02.3]} 25. Nf2 {[%clk
0:03:13.7]} 25... Rhc8 {[%clk 0:04:00.8]} 26. c3 {[%clk 0:03:02]} 26... Ne8
{[%clk 0:03:57]} 27. Nd3 {[%clk 0:03:00.6]} 27... f6 {[%clk 0:03:55.8]} 28. Bg3
{[%clk 0:02:51.3]} 28... a5 {[%clk 0:03:50.9]} 29. Re1 {[%clk 0:02:32.2]} 29...
Nd6 {[%clk 0:03:47.3]} 30. Kf2 {[%clk 0:02:18.9]} 30... Nc4 {[%clk 0:03:45.3]}
31. Nf4 {[%clk 0:02:11.8]} 31... b4 {[%clk 0:03:39.8]} 32. axb4 {[%clk
0:02:04.4]} 32... axb4 {[%clk 0:03:38.7]} 33. Re2 {[%clk 0:01:38.2]} 33... Bd6
{[%clk 0:03:29.4]} 34. Rbe1 {[%clk 0:01:13.2]} 34... Bxf4 {[%clk 0:03:22]} 35.
Bxf4 {[%clk 0:01:13.1]} 35... bxc3 {[%clk 0:03:19.5]} 36. bxc3 {[%clk
0:01:11.3]} 36... Na3 {[%clk 0:03:16.8]} 37. Bd2 {[%clk 0:01:06.3]} 37... Nb5
{[%clk 0:03:15.7]} 38. Kg3 {[%clk 0:00:54.7]} 38... Ra8 {[%clk 0:03:07.3]} 39.
Rc1 {[%clk 0:00:41.7]} 39... Ra2 {[%clk 0:03:01.3]} 40. Kf2 {[%clk 0:00:35.4]}
40... Ra3 {[%clk 0:02:57.8]} 41. Re3 {[%clk 0:00:32.9]} 41... Nd6 {[%clk
0:02:54.7]} 42. Be1 {[%clk 0:00:30.9]} 42... Nc4 {[%clk 0:02:52.7]} 43. Re2
{[%clk 0:00:29]} 43... Rca6 {[%clk 0:02:51.1]} 44. Rec2 {[%clk 0:00:27.2]} 44...
Ra2 {[%clk 0:02:49.5]} 45. Rxa2 {[%clk 0:00:23.7]} 45... Rxa2+ {[%clk
0:02:48.2]} 46. Kf1 {[%clk 0:00:22.5]} 46... Ne3+ {[%clk 0:02:45.2]} 47. Kg1
{[%clk 0:00:19.9]} 47... Rc2 {[%clk 0:02:37.5]} 48. Rxc2 {[%clk 0:00:18]} 48...
Nxc2 {[%clk 0:02:36.3]} 49. Bd2 {[%clk 0:00:17.6]} 49... Kc6 {[%clk 0:02:35]}
50. Kf2 {[%clk 0:00:16.4]} 50... Kb5 {[%clk 0:02:33.2]} 51. Ke2 {[%clk
0:00:16.3]} 51... Kc4 {[%clk 0:02:32.3]} 52. Kd1 {[%clk 0:00:13.8]} 52... Kd3
{[%clk 0:02:30.9]} 53. f4 {[%clk 0:00:02.6]} 53... Ne3+ {[%clk 0:02:29.5]} 54.
Bxe3 {[%clk 0:00:00.8]} 54... Kxe3 {[%clk 0:02:28.6]} 55. f5 {[%clk 0:00:00.1]}
55... exf5 {[%clk 0:02:27.1]} 0-1

[Event "Live Chess"]
[Site "Chess.com"]
[Date "2023.05.20"]
[Round "-"]
[White "ethanredball"]
[Black "Dark_Night123"]
[Result "1-0"]
[WhiteElo "753"]
[BlackElo "1559"]
[TimeControl "300"]
[EndTime "12:49:15 PDT"]
[Termination "ethanredball won by resignation"]

1. d4 {[%clk 0:04:58]} 1... Nf6 {[%clk 0:04:58.7]} 2. Bf4 {[%clk 0:04:56.9]}
2... e6 {[%clk 0:04:58.1]} 3. Nf3 {[%clk 0:04:54.3]} 3... c5 {[%clk 0:04:58]} 4.
dxc5 {[%clk 0:04:51.9]} 4... Bxc5 {[%clk 0:04:56.8]} 5. Nc3 {[%clk 0:04:51.5]}
5... Nc6 {[%clk 0:04:56.1]} 6. Nb5 {[%clk 0:04:49.7]} 6... Bb6 {[%clk 0:04:54]}
7. Nc3 {[%clk 0:04:44.3]} 7... O-O {[%clk 0:04:52.3]} 8. e3 {[%clk 0:04:42.6]}
8... d5 {[%clk 0:04:50.5]} 9. Bd3 {[%clk 0:04:36.9]} 9... Nh5 {[%clk 0:04:48.9]}
10. Bg3 {[%clk 0:04:29.6]} 10... Nf6 {[%clk 0:04:45.6]} 11. e4 {[%clk
0:04:26.6]} 1-0

[Event "Live Chess"]
[Site "Chess.com"]
[Date "2023.05.20"]
[Round "-"]
[White "Mugzwang"]
[Black "mpersander"]
[Result "0-1"]
[WhiteElo "895"]
[BlackElo "1011"]
[TimeControl "300"]
[EndTime "12:49:20 PDT"]
[Termination "mpersander won on time"]

1. Nf3 {[%clk 0:04:53.6]} 1... Nf6 {[%clk 0:04:53.2]} 2. d4 {[%clk 0:04:51.1]}
2... g6 {[%clk 0:04:51.1]} 3. g3 {[%clk 0:04:48]} 3... Bg7 {[%clk 0:04:49.4]} 4.
Bg2 {[%clk 0:04:46.7]} 4... O-O {[%clk 0:04:48.3]} 5. O-O {[%clk 0:04:44.4]}
5... d5 {[%clk 0:04:42.5]} 6. b3 {[%clk 0:04:42.3]} 6... Nc6 {[%clk 0:04:39.7]}
7. Bb2 {[%clk 0:04:38.6]} 7... Bf5 {[%clk 0:04:34.6]} 8. c4 {[%clk 0:04:34.5]}
8... Nb4 {[%clk 0:04:28.3]} 9. Na3 {[%clk 0:04:25]} 9... b6 {[%clk 0:03:52.6]}
10. Bc3 {[%clk 0:04:15.7]} 10... Qd6 {[%clk 0:03:34.1]} 11. Qd2 {[%clk
0:04:07.9]} 11... Ne4 {[%clk 0:03:27.2]} 12. Qe1 {[%clk 0:03:29.9]} 12... Nxc3
{[%clk 0:02:57.9]} 13. Qxc3 {[%clk 0:03:27.5]} 13... c5 {[%clk 0:02:56.9]} 14.
Nb5 {[%clk 0:03:18.6]} 14... Qd7 {[%clk 0:02:40.6]} 15. Ne5 {[%clk 0:03:06.4]}
15... Bxe5 {[%clk 0:02:34.9]} 16. dxe5 {[%clk 0:03:04.6]} 16... d4 {[%clk
0:02:32.1]} 17. Qf3 {[%clk 0:02:50]} 17... a6 {[%clk 0:02:16.6]} 18. Na3 {[%clk
0:02:40.8]} 18... Qe6 {[%clk 0:01:56.6]} 19. Qf4 {[%clk 0:02:36.7]} 19... Rad8
{[%clk 0:01:38.7]} 20. e4 {[%clk 0:02:19.4]} 20... Bh3 {[%clk 0:01:30.2]} 21.
Bxh3 {[%clk 0:01:59.8]} 21... Qxh3 {[%clk 0:01:27.7]} 22. Rfd1 {[%clk 0:01:44]}
22... Qe6 {[%clk 0:01:11.3]} 23. Rac1 {[%clk 0:01:36.4]} 23... Nxa2 {[%clk
0:01:08.5]} 24. Ra1 {[%clk 0:01:25.2]} 24... Nc3 {[%clk 0:01:06.9]} 25. Re1
{[%clk 0:01:16.3]} 25... a5 {[%clk 0:01:00.2]} 26. Nb5 {[%clk 0:01:12.6]} 26...
f6 {[%clk 0:00:46.7]} 27. Nc7 {[%clk 0:01:04.9]} 27... Qc6 {[%clk 0:00:40.8]}
28. Nd5 {[%clk 0:01:02]} 28... Nxd5 {[%clk 0:00:38.3]} 29. exd5 {[%clk
0:01:00.4]} 29... Qc7 {[%clk 0:00:33.9]} 30. exf6 {[%clk 0:00:53]} 30... Qxf4
{[%clk 0:00:32.1]} 31. gxf4 {[%clk 0:00:51.2]} 31... exf6 {[%clk 0:00:31.3]} 32.
Re6 {[%clk 0:00:47.4]} 32... f5 {[%clk 0:00:29.9]} 33. Rxb6 {[%clk 0:00:40.9]}
33... Rb8 {[%clk 0:00:28.6]} 34. Rb5 {[%clk 0:00:33.9]} 34... Rxb5 {[%clk
0:00:26.5]} 35. cxb5 {[%clk 0:00:32.6]} 35... Rb8 {[%clk 0:00:22.9]} 36. Rxa5
{[%clk 0:00:30.4]} 36... Kf7 {[%clk 0:00:21.8]} 37. Kf1 {[%clk 0:00:29.3]} 37...
Kf6 {[%clk 0:00:20.5]} 38. Ke2 {[%clk 0:00:28.1]} 38... g5 {[%clk 0:00:18.6]}
39. fxg5+ {[%clk 0:00:25.8]} 39... Kxg5 {[%clk 0:00:17.8]} 40. Kd3 {[%clk
0:00:24.7]} 40... h5 {[%clk 0:00:16.6]} 41. Kc4 {[%clk 0:00:22.9]} 41... Kf4
{[%clk 0:00:15.3]} 42. Kxc5 {[%clk 0:00:21.7]} 42... d3 {[%clk 0:00:13.3]} 43.
Ra4+ {[%clk 0:00:17.3]} 43... Kf3 {[%clk 0:00:11.9]} 44. Rd4 {[%clk 0:00:16.7]}
44... Rc8+ {[%clk 0:00:10.2]} 45. Kb4 {[%clk 0:00:12.7]} 45... Ke2 {[%clk
0:00:09.2]} 46. d6 {[%clk 0:00:09.4]} 46... d2 {[%clk 0:00:08.2]} 47. d7 {[%clk
0:00:07.8]} 47... Rd8 {[%clk 0:00:07.5]} 48. Kc5 {[%clk 0:00:03.8]} 48... d1=Q
{[%clk 0:00:05.9]} 49. Rxd1 {[%clk 0:00:02.9]} 49... Kxd1 {[%clk 0:00:04.8]} 50.
Kc6 {[%clk 0:00:02.3]} 50... Ke1 {[%clk 0:00:02.5]} 51. Kc7 {[%clk 0:00:01.3]}
51... Rxd7+ {[%clk 0:00:01.7]} 52. Kxd7 {[%clk 0:00:00.4]} 52... Kxf2 {[%clk
0:00:01.1]} 0-1

[Event "Live Chess"]
[Site "Chess.com"]
[Date "2023.05.20"]
[Round "-"]
[White "SavagePawn7"]
[Black "manthanit"]
[Result "0-1"]
[WhiteElo "788"]
[BlackElo "1010"]
[TimeControl "300"]
[EndTime "12:49:27 PDT"]
[Termination "manthanit won on time"]

1. e4 {[%clk 0:04:58]} 1... e6 {[%clk 0:04:59]} 2. d4 {[%clk 0:04:55.5]} 2... d5
{[%clk 0:04:58.6]} 3. c4 {[%clk 0:04:53.5]} 3... c5 {[%clk 0:04:51.4]} 4. cxd5
{[%clk 0:04:44.7]} 4... exd5 {[%clk 0:04:49.9]} 5. dxc5 {[%clk 0:04:35.5]} 5...
Bxc5 {[%clk 0:04:47.7]} 6. exd5 {[%clk 0:04:30.8]} 6... Nf6 {[%clk 0:04:36.7]}
7. Nc3 {[%clk 0:04:28.7]} 7... Bb4 {[%clk 0:04:35.5]} 8. Qa4+ {[%clk 0:04:22.3]}
8... Nc6 {[%clk 0:03:51.8]} 9. dxc6 {[%clk 0:04:20.4]} 9... Bxc3+ {[%clk
0:03:50.3]} 10. bxc3 {[%clk 0:04:18.4]} 10... bxc6 {[%clk 0:03:44]} 11. Qxc6+
{[%clk 0:04:15.5]} 11... Bd7 {[%clk 0:03:41.3]} 12. Qc4 {[%clk 0:04:03.1]} 12...
O-O {[%clk 0:03:39.6]} 13. Ba3 {[%clk 0:03:41.1]} 13... Re8+ {[%clk 0:03:37.7]}
14. Be2 {[%clk 0:03:26.2]} 14... Bg4 {[%clk 0:03:35.6]} 15. Nf3 {[%clk
0:03:21.2]} 15... Rc8 {[%clk 0:03:23.1]} 16. Rd1 {[%clk 0:03:01.8]} 16... Qxd1+
{[%clk 0:03:08.5]} 17. Kxd1 {[%clk 0:02:57.2]} 17... Rxc4 {[%clk 0:03:06.1]} 18.
Bxc4 {[%clk 0:02:53]} 18... Ne4 {[%clk 0:02:43.8]} 19. Rf1 {[%clk 0:02:27.7]}
19... Nxc3+ {[%clk 0:02:38]} 20. Kc2 {[%clk 0:02:21.6]} 20... Ne4 {[%clk
0:02:22.5]} 21. Re1 {[%clk 0:02:14.4]} 21... Bf5 {[%clk 0:02:19.7]} 22. Bd3
{[%clk 0:01:56.4]} 22... Rc8+ {[%clk 0:02:16.3]} 23. Kb2 {[%clk 0:01:34.9]}
23... g6 {[%clk 0:01:49.8]} 24. Bxe4 {[%clk 0:01:30.1]} 24... Bxe4 {[%clk
0:01:38.8]} 25. Rxe4 {[%clk 0:01:27.7]} 25... f5 {[%clk 0:01:37.7]} 26. Re7
{[%clk 0:01:17.8]} 26... Rb8+ {[%clk 0:01:33.1]} 27. Kc2 {[%clk 0:01:09.3]}
27... Rc8+ {[%clk 0:01:32]} 28. Kd2 {[%clk 0:01:06.3]} 28... Rd8+ {[%clk
0:01:31]} 29. Ke2 {[%clk 0:01:03.2]} 29... Rc8 {[%clk 0:01:29.4]} 30. Nd4 {[%clk
0:00:50.4]} 30... Rd8 {[%clk 0:01:27.1]} 31. Ne6 {[%clk 0:00:39.1]} 31... Rd5
{[%clk 0:01:04.6]} 32. Ng5 {[%clk 0:00:21.7]} 32... h6 {[%clk 0:00:57.4]} 33.
Ne6 {[%clk 0:00:16.1]} 33... Ra5 {[%clk 0:00:48.8]} 34. Bd6 {[%clk 0:00:11.4]}
34... Rxa2+ {[%clk 0:00:46.9]} 35. Kf3 {[%clk 0:00:10]} 35... a5 {[%clk
0:00:41.8]} 36. Re8+ {[%clk 0:00:08]} 36... Kf7 {[%clk 0:00:40.3]} 37. Rh8
{[%clk 0:00:00.2]} 37... Kxe6 {[%clk 0:00:38.4]} 0-1

[Event "Live Chess"]
[Site "Chess.com"]
[Date "2023.05.20"]
[Round "-"]
[White "KuriyamaMiraiUA"]
[Black "LaupMiths"]
[Result "0-1"]
[WhiteElo "689"]
[BlackElo "1808"]
[TimeControl "300"]
[EndTime "12:49:27 PDT"]
[Termination "LaupMiths won by checkmate"]

1. d4 {[%clk 0:04:56.6]} 1... d5 {[%clk 0:04:58.9]} 2. c4 {[%clk 0:04:55]} 2...
e6 {[%clk 0:04:57.1]} 3. Nc3 {[%clk 0:04:53.6]} 3... c5 {[%clk 0:04:56.1]} 4.
Nf3 {[%clk 0:04:46.5]} 4... Nc6 {[%clk 0:04:54.6]} 5. e3 {[%clk 0:04:43.7]} 5...
Nf6 {[%clk 0:04:52.1]} 6. Bd3 {[%clk 0:04:32.6]} 6... cxd4 {[%clk 0:04:45.8]} 7.
exd4 {[%clk 0:04:28.5]} 7... Be7 {[%clk 0:04:38.5]} 8. O-O {[%clk 0:04:16.8]}
8... O-O {[%clk 0:04:35.4]} 9. b3 {[%clk 0:04:05.2]} 9... b6 {[%clk 0:04:29.9]}
10. Re1 {[%clk 0:03:50.3]} 10... Bb7 {[%clk 0:04:24.8]} 11. Ne5 {[%clk
0:03:49.1]} 11... dxc4 {[%clk 0:04:16.4]} 12. Bxc4 {[%clk 0:03:37.3]} 12... a6
{[%clk 0:03:43.4]} 13. Nxc6 {[%clk 0:03:27]} 13... Bxc6 {[%clk 0:03:41.6]} 14.
Bf4 {[%clk 0:03:15.5]} 14... Nd5 {[%clk 0:03:38.4]} 15. Nxd5 {[%clk 0:03:12.7]}
15... Bxd5 {[%clk 0:03:37]} 16. Bxd5 {[%clk 0:03:11.2]} 16... Qxd5 {[%clk
0:03:36.9]} 17. Re5 {[%clk 0:03:04.5]} 17... Qd7 {[%clk 0:03:32.9]} 18. Rc1
{[%clk 0:02:58.1]} 18... Bf6 {[%clk 0:03:30.3]} 19. Re4 {[%clk 0:02:40]} 19...
Rac8 {[%clk 0:03:27]} 20. Be5 {[%clk 0:02:24.6]} 20... Rxc1 {[%clk 0:03:22]} 21.
Qxc1 {[%clk 0:02:21.4]} 21... Rc8 {[%clk 0:03:20.2]} 22. Qd2 {[%clk 0:02:01.9]}
22... Qd5 {[%clk 0:03:12.1]} 23. Bxf6 {[%clk 0:01:58.5]} 23... Qxe4 {[%clk
0:03:09.8]} 24. Be5 {[%clk 0:01:38.7]} 24... Rc2 {[%clk 0:03:04.8]} 25. Qe3
{[%clk 0:01:31.1]} 25... Qxe3 {[%clk 0:02:53.2]} 26. fxe3 {[%clk 0:01:29.4]}
26... Rxa2 {[%clk 0:02:53.1]} 27. Bc7 {[%clk 0:01:27]} 27... b5 {[%clk
0:02:51.5]} 28. h3 {[%clk 0:01:22.2]} 28... Rb2 {[%clk 0:02:50.4]} 29. Kh2
{[%clk 0:01:17.5]} 29... Rxb3 {[%clk 0:02:49.4]} 30. Kg3 {[%clk 0:01:16.8]}
30... Rxe3+ {[%clk 0:02:47.9]} 31. Kf4 {[%clk 0:01:16]} 31... Rc3 {[%clk
0:02:45.4]} 32. Ke5 {[%clk 0:01:14.5]} 32... Rxc7 {[%clk 0:02:44]} 33. Kd6
{[%clk 0:01:13.7]} 33... Rc4 {[%clk 0:02:41.8]} 34. Ke7 {[%clk 0:01:13]} 34...
a5 {[%clk 0:02:39.6]} 35. Ke8 {[%clk 0:01:12.3]} 35... a4 {[%clk 0:02:38.4]} 36.
d5 {[%clk 0:01:11.2]} 36... exd5 {[%clk 0:02:37]} 37. h4 {[%clk 0:01:10.5]}
37... a3 {[%clk 0:02:36.2]} 38. g4 {[%clk 0:01:10.1]} 38... a2 {[%clk
0:02:35.9]} 39. g5 {[%clk 0:01:09.7]} 39... a1=Q {[%clk 0:02:35.3]} 40. g6
{[%clk 0:01:09]} 40... Qe1+ {[%clk 0:02:27.4]} 41. Kd7 {[%clk 0:01:07.5]} 41...
Qe6+ {[%clk 0:02:25.9]} 42. Kd8 {[%clk 0:01:06.2]} 42... Rc8# {[%clk 0:02:25.4]}
0-1